Cogmind - Beta 16 --- EXPLORER MODE // 2025.12.29 @ 12:08:25 Player: K.K.Y. Result: Destroyed by UA-JUK(R) with Subdweller Shrapnel Launcher Performance ------------- Evolutions (0) 0 Regions Visited (3) 600 Robots Destroyed (40) 200 Value Destroyed (957) 957 Prototype IDs (12) 240 Alien Tech Used (0) 0 Bonus (0) 0 TOTAL SCORE: 1997 Bonus ------- None Cogmind --------- Core Integrity 0/250 Matter 300/300 Energy 265/265 System Corruption 1% Temperature Cool (0) Movement Walking (130) Location -10/Subcaves Parts ------- > --- POWER (1) -------- Improved Ion Engine > --- PROPULSION (2) --- Cargo Legs > --- UTILITY (3+2) ---- Signal Interpreter Makeshift Light Armor Plating > --- WEAPON (2) ------- Subdweller Laser Subdweller Laser > --- INVENTORY (5) ---- Large Storage Unit High-capacity Storage Unit Core Shielding Utility Shielding Battle Cannon Peak State ------------ > --- POWER ------------ Improved Ion Engine > --- PROPULSION ------- Cargo Legs > --- UTILITY ---------- Signal Interpreter Makeshift Light Armor Plating > --- WEAPON ----------- Subdweller Laser Subdweller Laser > --- INVENTORY -------- Large Storage Unit High-capacity Storage Unit Core Shielding Utility Shielding Battle Cannon [Rating: 27] Favorites ----------- Power Ion Engine Engine Ion Engine Propulsion Light Treads Treads Light Treads Leg Cargo Legs Utility Signal Interpreter Device Sensor Array Storage Large Storage Unit Processor Signal Interpreter Protection Makeshift Light Armor Plating Weapon Assault Rifle Energy Gun Subdweller Laser Ballistic Gun Assault Rifle Special Weapon Mining Laser Build | -11 -10 -10 -10 ------- Run | Yrd Mat Min Sub Slots Evolved 1 | . 1 . . Power . | . . . . Propulsion . | . . . . Utility 1 | . 1 . . Weapon . | . . . . Parts Attached 27 | 7 9 3 8 Power 4 | 1 1 1 1 Engine 4 | 1 1 1 1 Core . | . . . . Reactor . | . . . . Propulsion 7 | 2 2 1 2 Treads 6 | 2 2 1 1 Leg 1 | . . . 1 Wheel . | . . . . Hover . | . . . . Flight . | . . . . Utility 6 | 2 3 . 1 Device 3 | 1 2 . . Storage 1 | . 1 . . Processor 1 | 1 . . . Hackware . | . . . . Protection 1 | . . . 1 Artifact . | . . . . Weapon 10 | 2 3 1 4 Energy Gun 4 | . 1 . 3 Energy Cannon . | . . . . Ballistic Gun 5 | 2 2 . 1 Ballistic Cannon . | . . . . Launcher . | . . . . Special Weapon 1 | . . 1 . Impact Weapon . | . . . . Slashing Weapon . | . . . . Piercing Weapon . | . . . . Special Melee Weapon . | . . . . Unidentified Prototypes . | . . . . Parts Lost 7 | . 2 . 5 Power 1 | . . . 1 Propulsion 1 | . . . 1 Utility 3 | . 1 . 2 Weapon 2 | . 1 . 1 Highest Loss Streak 3 | . 2 . 3 To Critical Strikes . | . . . . Average Backups 4 | 2 4 5 4 Power . | . . . . Propulsion . | . . . . Utility 3 | 1 3 4 4 Weapon . | . 1 1 . Tool/Special . | . . . . Unused Backups 6 | . 1 . 5 Power . | . . . . Propulsion . | . . . . Utility 4 | . 1 . 3 Weapon 2 | . . . 2 Tool/Special . | . . . . Average Slot Usage (%) 87 | . 96 100 74 Engine 9 | . 12 12 7 Treads 19 | . 25 25 13 Leg 2 | . . . 4 Device 18 | . 21 25 13 Processor 11 | . 12 12 11 Energy Gun 6 | . 1 . 12 Ballistic Gun 16 | . 22 23 9 Peak Build Rating 27 | 7 10 10 27 Average Rating 12 | 5 8 10 15 On Entrance 6 | . 7 10 10 Avg Prop Armor Cover (%) . | . . . . Naked Turns . | . . . . Heaviest Build 26 | 6 26 11 19 Greatest Support 55 | 40 40 40 55 Greatest Overweight (x) . | . . . . Average Overweight (x) . | . . . . Largest Inventory Capacity 15 | 5 15 5 5 Average Capacity 5 | 5 5 5 5 Most Carried 5 | 5 5 5 5 Average Carried 4 | 2 4 5 4 Final Capacity 5 | 5 5 5 5 Final Carried 5 | 4 5 5 5 Class Distribution -------------------- 93% | Hacker-Mutant 6% | Hacker-Skirmisher Dominant Class ---------------- Hacker-Mutant | -10/Materials Hacker-Mutant | -10/Mines Hacker-Mutant | -10/Subcaves Resources | -11 -10 -10 -10 ----------- Run | Yrd Mat Min Sub Matter Collected 989 | 200 270 54 465 Remotely . | . . . . Salvage Created 1329 | 112 564 32 621 Parts 99 | 5 35 3 56 Haulers Intercepted 2 | . 2 . . Recyclers Shooed . | . . . . Parts Field Recycled . | . . . . Retrieved Matter . | . . . . Parts Self-Destructed . | . . . . Prevented . | . . . . Parts Restored . | . . . . Kills | -11 -10 -10 -10 ------- Run | Yrd Mat Min Sub Combat Hostiles Destroyed 28 | . 9 2 17 Guns 28 | . 9 2 17 Classes Destroyed 10 | 2 5 . 3 Worker 3 | . 3 . . Tunneler 3 | 1 2 . . Hauler 2 | . 2 . . Recycler 1 | 1 . . . Turret 2 | . . . 2 Watcher 1 | . 1 . . Swarmer 9 | . 2 2 5 Grunt 7 | . 7 . . Artisan 1 | . . . 1 Subdweller 12 | . . . 12 Best Kill Streak 6 | 1 4 2 6 Combat Bots Only 4 | . 4 2 4 Max Kills in Single Turn 2 | 1 2 1 1 Gunslinging . | . . . . Exploded . | . . . . Melee . | . . . . Uniques/NPCs Destroyed . | . . . . Combat | -11 -10 -10 -10 -------- Run | Yrd Mat Min Sub Hostile Shots Fired 187 | . 71 2 114 Missed 55 | . 18 . 37 Hits 132 | . 53 2 77 Projectile 132 | . 53 2 77 AOE 4 | . . . 4 Critical Strikes 5 | . 2 . 3 Damage Taken 1303 | . 475 7 821 Core 285 | . 98 4 183 Absorbed by Shields . | . . . . Ignored by Resistances 800 | . 290 6 504 Core Remaining (%) 100 | 100 . . . Volleys Fired 180 | 6 59 7 108 Largest 2 | 2 2 2 2 Hottest 120 | 40 60 100 120 Shots Fired 311 | 12 110 10 179 Gun 297 | 12 110 6 169 Cannon . | . . . . Launcher . | . . . . Special 14 | . . 4 10 Kinetic 219 | 12 96 6 105 Thermal 92 | . 14 4 74 Explosive . | . . . . Electromagnetic . | . . . . Robot Hit Streak 57 | 10 32 32 57 Robot Miss Streak 2 | . 2 . 1 Penetration Max . | . . . . Secondary Targets 6 | . 4 . 2 Max Gunslinging Chain 1 | . 1 . 1 Shots Hit Robots 187 | 10 100 3 74 Core Hits 78 | 4 37 2 35 Critical Kills 3 | . 1 . 2 Critical Parts Destroyed . | . . . . Critical Strikes 3 | . 1 . 2 Destroy 3 | . 1 . 2 Melee Attacks . | . . . . Impact . | . . . . Slashing . | . . . . Piercing . | . . . . Sneak Attacks . | . . . . Combat Hostiles . | . . . . Follow-up Attacks . | . . . . Damage Inflicted 2247 | 77 872 39 1259 Guns 2247 | 77 872 39 1259 Cannons . | . . . . Explosions . | . . . . Melee . | . . . . Ramming . | . . . . Kinetic 1363 | 77 722 39 525 Thermal 884 | . 150 . 734 Explosive . | . . . . Electromagnetic . | . . . . Impact . | . . . . Slashing . | . . . . Piercing . | . . . . Highest Corruption 1 | . 1 1 1 Average Corruption 1 | . 1 1 1 Corruption Purged . | . . . . Corruption Blocked . | . . . . Effects 17 | . . 8 9 Message Errors 5 | . . 4 1 Matter Fused 3 | . . . 3 Heat Flow Errors 2 | . . . 2 Energy Discharges 2 | . . 2 . Data Loss (minor) 4 | . . 2 2 Misfires 1 | . . . 1 Overload Shots . | . . . . Overflow Damage . | . . . . Projectiles . | . . . . Explosions . | . . . . Melee . | . . . . Knockbacks . | . . . . Impact . | . . . . Kinetic . | . . . . Secondary . | . . . . Self-Inflicted Damage . | . . . . Shots . | . . . . Rammed . | . . . . Targets Rammed . | . . . . Kicked . | . . . . Crushed . | . . . . Highest Temperature 258 | . 112 . 258 Average Temperature 47 | . 30 . 69 Received Heat Transfer 1064 | . 420 . 644 Siege Activations . | . . . . Martial Activations . | . . . . Shielding Activations . | . . . . Robots Disrupted . | . . . . Combat Hostiles . | . . . . Robots Corrupted . | . . . . Combat Hostiles . | . . . . Parts Fried . | . . . . Impact Corruptions . | . . . . Robots Melted . | . . . . Combat Hostiles . | . . . . Parts Melted 1 | . . . 1 Heat Transferred 1225 | . 325 . 900 Parts Sabotaged . | . . . . Parts Stolen . | . . . . Parts Stripped . | . . . . Power Chain Reactions . | . . . . Alert | -11 -10 -10 -10 ------- Run | Yrd Mat Min Sub Maximum Alert Level . | . . . . Low Security (%) 100 | 100 100 100 . Level 1 . | . . . . Level 2 . | . . . . Level 3 . | . . . . Level 4 . | . . . . Level 5 . | . . . . High Security . | . . . . Max Security . | . . . . Peak Influence 85 | 5 85 50 . Initial . | . . . . Average 5 | . 17 1 . Influence Increases 507 | 10 266 51 180 Destroy 0b10 Robot/C 360 | . 180 40 140 Destroy 0b10 Robot/NC 50 | 10 40 . . Destroy Leader 66 | . 46 10 10 Destroy Structure 1 | . . 1 . Lose Combat Pursuer 30 | . . . 30 Influence Decreases 447 | 10 266 51 120 Time Decay 427 | 10 246 51 120 Lost Part 20 | . 20 . . Squads Dispatched . | . . . . Investigation . | . . . . Extermination . | . . . . Reinforcement . | . . . . Assault . | . . . . Garrison . | . . . . Intercept . | . . . . Searches Triggered . | . . . . Construction Impeded . | . . . . Haulers Reinforced . | . . . . Active Scanning Responses . | . . . . Cargo Convoy Interrupts . | . . . . Stealth | -11 -10 -10 -10 --------- Run | Yrd Mat Min Sub Distress Signals 1 | . 1 . . Communications Jammed . | . . . . Distress Signals . | . . . . Times Spotted 39 | . 14 2 23 Peak Tracking Total 6 | . 3 2 6 Tactical Retreats 1 | . . . 1 Traps | -11 -10 -10 -10 ------- Run | Yrd Mat Min Sub Traps Triggered 5 | . 5 . . Indirectly . | . . . . Trap Hack Attempts . | . . . . Triggered . | . . . . Disarmed . | . . . . Reprogrammed . | . . . . Reused . | . . . . Traps Extracted . | . . . . Installed . | . . . . Triggered . | . . . . Machines | -11 -10 -10 -10 ---------- Run | Yrd Mat Min Sub Machines Disabled 2 | . . . 2 Max in Single Turn 1 | . . . 1 Machines Repaired . | . . . . Machines Dismantled . | . . . . Machines Sabotaged . | . . . . Overloaded Fab Kills . | . . . . Hacking | -11 -10 -10 -10 --------- Run | Yrd Mat Min Sub Machines Accessed 5 | . 4 . 1 Terminals 4 | . 4 . . Fabricators . | . . . . Repair Stations . | . . . . Recycling Units . | . . . . Scanalyzers . | . . . . Garrison Access . | . . . . Total Hacks 6 | . 5 . 1 Successful 5 | . 4 . 1 Failed 1 | . 1 . . Catastrophic . | . . . . Database Lockouts . | . . . . Manual 5 | . 5 . . Terminals 5 | . 5 . . Fabricators . | . . . . Repair Stations . | . . . . Recycling Units . | . . . . Scanalyzers . | . . . . Garrison Access . | . . . . Terminal Hacks 1 | . . . 1 Proto ID Catalog 1 | . . . 1 Fabricator Hacks . | . . . . Repair Station Hacks . | . . . . Recycling Unit Hacks . | . . . . Scanalyzer . | . . . . Garrison Access Hacks . | . . . . Unauthorized Hacks 4 | . 4 . . Terminals 4 | . 4 . . Botnet 4 | . 4 . . Fabricators . | . . . . Repair Stations . | . . . . Recycling Units . | . . . . Scanalyzers . | . . . . Garrison Access . | . . . . Data Cores Recovered . | . . . . Used . | . . . . Hacking Detections 1 | . 1 . . Full Trace Events . | . . . . Feedback Events . | . . . . Feedback Blocked . | . . . . Robot Schematics Acquired . | . . . . Robots Built . | . . . . Authchips . | . . . . Time . | . . . . Total Robot Build Rating . | . . . . Part Schematics Acquired . | . . . . Parts Built . | . . . . Authchips . | . . . . Time . | . . . . Total Part Build Rating . | . . . . Part Studies Acquired . | . . . . Parts Repaired . | . . . . Time . | . . . . Parts Recycled . | . . . . Recycled Matter . | . . . . Retrieved Matter . | . . . . Retrieved Components . | . . . . Parts Scanalyzed . | . . . . Part Schematics Acquired . | . . . . Parts Damaged . | . . . . Bothacking | -11 -10 -10 -10 ------------ Run | Yrd Mat Min Sub Used RIF Installer . | . . . . Robots Hacked . | . . . . Non-combat . | . . . . Combat . | . . . . Robot Hacks Applied . | . . . . Relay Couplers Released . | . . . . Fabnet Peak Effective % . | . . . . Robots Rewired . | . . . . Allies Hacked . | . . . . Hacks Repelled . | . . . . Allies | -11 -10 -10 -10 -------- Run | Yrd Mat Min Sub Total Allies . | . . . . Largest Group . | . . . . Highest-Rated Group . | . . . . Highest-Rated Ally . | . . . . Total Orders . | . . . . Ally Attacks . | . . . . Total Damage . | . . . . Kills . | . . . . Allies Corrupted . | . . . . Allies Melted . | . . . . Intel | -11 -10 -10 -10 ------- Run | Yrd Mat Min Sub Active Infowar (turns) 3750 | 77 668 1786 1219 Sensors 3561 | . 556 1786 1219 Structural 527 | 77 450 . . Robot Analysis Total . | . . . . Derelict Logs Recovered 2 | . . . 2 Drone Launches . | . . . . Drone Recoveries . | . . . . Exploration | -11 -10 -10 -10 ------------- Run | Yrd Mat Min Sub Turns Passed 4833 | 90 668 1786 2289 Spaces Moved 2707 | 45 309 1029 1324 Core 13 | 13 . . . Treads 2002 | 32 309 1029 632 Legs 692 | . . . 692 Wheels . | . . . . Hover . | . . . . Flight . | . . . . Fastest Speed 50 | 50 160 160 130 Average Speed 151 | 128 160 160 144 Slowest Speed 160 | 160 160 160 160 Overloaded Moves . | . . . . Propulsion Burnouts . | . . . . Robots Hopped . | . . . . Potential Cave-ins . | . . . . Cave-ins Triggered . | . . . . Exploration Rate (%) 59 | 4 64 104 65 Regions Visited 3 Branch Regions 2 Pre-discovered Areas . | . . . . Known Exits Taken 3 | 1 1 1 . Unknown Exits Taken . | . . . . Scrap Searched . | . . . . Spaces Dug 4 | . . 4 . Terrain Destroyed 4 | . . 4 . Melee . | . . . . Projectile 4 | . . 4 . AOE . | . . . . Terrain Rammed . | . . . . Walls Destroyed . | . . . . Machines Disabled . | . . . . Actions | -11 -10 -10 -10 --------- Run | Yrd Mat Min Sub Total 3121 | 67 393 1151 1510 Wait 170 | . 7 111 52 Move 2704 | 44 308 1028 1324 Hop . | . . . . Pick Up 16 | 10 2 . 4 Fast Attach 11 | 1 5 . 5 Attach 8 | 6 1 . 1 Detach 1 | . 1 . . Swap 16 | . 5 3 8 Drop 15 | . 5 2 8 Fire 180 | 6 59 7 108 Melee . | . . . . Ram . | . . . . Kick . | . . . . Crush . | . . . . Escape Stasis . | . . . . Rewire . | . . . . Trap . | . . . . Miscellaneous . | . . . . Route ------- -11/Scrapyard -10/Materials (discovered 2 exits: *Mat / *Min) -10/Mines (discovered 3 exits: *Mat x2 / *Sub) -10/Subcaves (discovered 3 exits: *Mat x2 / *Rec) History --------- Turn | Location | Event 6 | -11/Scrapyard | Identified exit to Materials 6 | -11/Scrapyard | Discovered exit to Materials (range 16) 91 | -11/Scrapyard | Entered Materials 91 | -10/Materials | Evolved 1 slot: Utility x1 504 | -10/Materials | Build established: Hacker-Skirmisher 565 | -10/Materials | Identified exit to Materials 565 | -10/Materials | Discovered exit to Materials (range 7) 717 | -10/Materials | Identified exit to Mines 717 | -10/Materials | Discovered exit to Mines (range 16) 759 | -10/Materials | Entered Mines 766 | -10/Mines | Received a Rocket Launcher from a helpful Derelict 803 | -10/Mines | Met a Derelict bent on vengeance 827 | -10/Mines | Build established: Hacker-Mutant 991 | -10/Mines | Discovered exit to Materials (range 9) 1347 | -10/Mines | Discovered exit to Materials (range 12) 2538 | -10/Mines | Identified exit to Subcaves 2538 | -10/Mines | Discovered exit to Subcaves (range 5) 2545 | -10/Mines | Entered Subcaves 2561 | -10/Subcaves | Learned 4 Materials zone layouts 3303 | -10/Subcaves | Core integrity fell below 50% 3393 | -10/Subcaves | Learned location of 1 exit from Materials 3397 | -10/Subcaves | Shifting Twisted Machinery released Sub. Beam Cannon 3525 | -10/Subcaves | Identified exit to Materials 3525 | -10/Subcaves | Discovered exit to Materials (range 8) 3663 | -10/Subcaves | Shifting Twisted Machinery released Battle Rifle 3705 | -10/Subcaves | Shifting Twisted Machinery released Battle Cannon 3789 | -10/Subcaves | Core integrity fell below 20% 3819 | -10/Subcaves | Lost 3 parts (1p2u) 3848 | -10/Subcaves | Visited 4L-MR0's lab 3869 | -10/Subcaves | Found Cargo Legs 3870 | -10/Subcaves | Attached Cargo Legs, gained temporary slots: Utility x2 4421 | -10/Subcaves | A swath of the cavern ceiling suddenly collapsed 4581 | -10/Subcaves | Discovered exit to Materials (range 7) 4583 | -10/Subcaves | Shifting Twisted Machinery released Mak. Light Armor Plating 4715 | -10/Subcaves | Identified exit to Recycling 4715 | -10/Subcaves | Discovered exit to Recycling (range 16) 4834 | -10/Subcaves | Destroyed by UA-JUK(R) with Subdweller Shrapnel Launcher Last Messages --------------- 04466_ YO-M16(z): "She is not going to be happy we haven't found any suitable candidates yet." 04552_ Acquired Imp. Ion Engine. 04581_ EXIT=FOUND: MATERIALS Mak. Light Armor Plating falls loose from the Twisted Machinery. 04587_ System corrupted: Heat flow error (+105). 04594_ Acquired Mak. Light Armor Plating. 04715_ EXIT=FOUND: RECYCLING 04716_ Machine disabled. 04725_ S-10 Pest destroyed. 04739_ Acquired 14 matter. 04748_ Autobeam Turret destroyed. 04748_ Switching to secondary target: Autobeam Turret. 04751_ Autobeam Turret destroyed. 04757_ Acquired 8 matter. 04759_ Subatomizers dissect the Flight Unit. 04827_ Sub. Power Source melted. 04827_ FT-YUM(R) destroyed. Map ----- +----------------------------------------------------+ | ?????????????????????????????????????????????????? | | ?????????????????????????????????????????????????? | | ?????????????????????????????????????????????????? | | ?????????????????????????????????????????????????? | | ?????????????????????????????????????????????????? | | ?????????????????????????????????????????????????? | | ?????????????????????????????????????????????????? | | ?????????????????????????????????????????????????? | | ?????????????????????????????????????????????????? | | ?????????????????????????????????????????????????? | | ???????????????????????? ????????????????????????? | | ??????????????????????# ????????????????????????? | | ?????????????????????## ????????????????????????? | | ???????????????????? ????????????????####???? | | ????????????????????? ???????????????? ##??? | | ????????????????????? ???????????????# ???? | | ?????????????????????? #####?????##### ????? | | ?????????????????????? ##????# #?????? | | ???????????????????????# #????# #??????? | | ?????????????????????????# ###?## ##?????? | | ??????????????????????????# ### #?????? | | ?????????????????????##???# #??????? | | ?????????????????????# #### #???????? | | ?????????????????????# #???????? | | ?????????????????????# ### #???????? | | ?????????????????????# &@ #### ##??????? | | ?????????????????????##&R## ### ###????? | | ??????????????????????#&&?## ## ###### | | ??????????????????????# ??## ### ## # | | ??????????????????????# ???#######?# ### | | ?????????????????????? ????????????# #?## | | ?????????????????????# ????????????# ##??##### | | ?????????????????????# ????????????# ##???????### | | ?????????????????????# ????????????##???????????? | | ?????????????????????# ??????????????????????????? | | ????????????????????? ??????????????????????????? | | ????????????????????? ??????????????????????????? | | ?????????????????????= ??????????????????????????? | | ????????????????????? ???????????????????????????? | | ?????????????????????????????????????????????????? | | ?????????????????????????????????????????????????? | | ?????????????????????????????????????????????????? | | ?????????????????????????????????????????????????? | | ?????????????????????????????????????????????????? | | ?????????????????????????????????????????????????? | | ?????????????????????????????????????????????????? | | ?????????????????????????????????????????????????? | | ?????????????????????????????????????????????????? | | ?????????????????????????????????????????????????? | | ?????????????????????????????????????????????????? | +----------------------------------------------------+ Best States ------------- Heat Dissipation 39 Energy Generation 12 Energy Capacity 265 Matter Stores 300 Matter Capacity 300 Sight Range 16 Robot Scan Range 14 Terrain Scan Density 10 Armor Coverage 100 Resistance: KI 35 Resistance: TH 35 Resistance: EX 35 Resistance: EM 35 Resistance: I 35 Resistance: S 35 Resistance: P 35 Evasion (%) 55 Recoil Reduction 2 Offensive Hacking 20 Item Schematics ----------------- None Robot Schematics ------------------ None Fabricated ------------ Nothing Repaired ---------- Nothing Studied --------- None Alien Tech Used ----------------- None Achievements -------------- None Challenges ------------ None Game ------ Seed DefenseImpulseMatter Manual? 0 Play Time 00:17:03 Cumulative 232.6 hours Start 2025.12.29 @ 11:50:24 End 2025.12.29 @ 12:08:25 Sessions 1 Manual Loads 0 Difficulty Explorer Special Mode None Game No. 363 Rogue 0 Adventurer 0 Explorer 363 Win Type - Total 0 Types 0/0/0/0/0/0/0/0/0/0 Lore% 71 Gallery% 68 Achievement% 54 Wizard Run 0 Options --------- Layout 1 ASCII 0 Keyboard 0 Movement Mouse Keybinds 0 Fullscreen 1 Font 24/Smallcaps Map View 50x35 Zoom Use 0% Tactical HUD 1 Map Filters NONE Filters NONE Steam 1 RUN: babd69a6-d6db-491b-86f9-123a3f0b35ca